bitfinex-derivatives/quotes_SOLF0:USTF0_20250124
["timestamp","ask_amount","ask_price","bid_price","bid_amount"]
[1737688714940,4.0258,248.43,248.4,0.03068317]
[1737688715146,4.0258,248.43,248.32,14.98703677]
[1737688715347,4.0258,248.43,248.39,0.02671258]
[1737688715746,0.02572056,248.44,248.39,0.02671258]
[1737688716345,4.0262,248.4,248.39,1.258e-05]
[1737688716745,19.01323677,248.4,248.39,1.258e-05]
[1737688717345,4.0262,248.4,248.39,1.258e-05]
[1737688718250,4.0281,248.29,248.24,6.4915]
[1737688718954,14.98703677,248.35,248.24,3.9081]
[1737688719452,0.02687243,248.32,248.27,0.02821189]
[1737688720854,4.0281,248.29,248.27,0.02821189]
[1737688721351,4.0281,248.29,248.27,1.189e-05]
[1737688722461,4.0296,248.2,248.07,18.62703677]
[1737688722662,4.0296,248.2,248.08,9.0442]
[1737688722960,14.98703677,248.27,248.08,9.0442]
[1737688723161,4.0296,248.19,248.12,4.0306]
[1737688723360,4.0296,248.19,248.08,9.0442]
[1737688723763,0.0284893,248.18,248.17,4.0299]
[1737688724263,0.0284893,248.18,248.08,9.0442]
[1737688724264,4.0284,248.27,248.16,4.03]
[1737688724462,2.6316,248.3,248.11,14.98703677]
[1737688724463,0.0289467,248.2,248.15,0.02616131]
[1737688724862,2.6316,248.3,248.08,9.0442]
[1737688725162,0.03094006,248.2,248.15,0.02999256]
[1737688725558,2.6316,248.3,248.08,9.0442]
[1737688725760,0.02751128,248.2,248.15,0.02698659]
[1737688725953,2.6316,248.3,248.14,4.0304]
[1737688726457,0.02707195,248.2,248.15,0.028105]
[1737688726657,0.02707195,248.2,248.16,4.03]
[1737688726859,4.029,248.23,248.08,9.0442]
[1737688727058,0.02914246,248.2,248.15,0.03035847]
[1737688727263,4.03,248.17,248.15,0.03035847]
[1737688728061,0.02914246,248.2,248.15,0.03035847]
[1737688728362,4.0298,248.18,248.15,0.03035847]
[1737688728963,4.05874246,248.2,248.15,4.06065847]
[1737688729161,0.02914246,248.2,248.15,0.03035847]
[1737688729862,4.0301,248.16,248.15,0.03035847]
[1737688730058,0.02914246,248.2,248.15,0.03035847]
[1737688730465,4.0297,248.19,248.15,0.03035847]
[1737688730661,0.02914246,248.2,248.15,0.03035847]
[1737688732164,4.0298,248.18,248.15,0.03035847]
[1737688732556,4.05874246,248.2,248.15,0.03035847]
[1737688732757,0.02914246,248.2,248.15,0.03035847]
[1737688733164,0.02914246,248.2,248.16,4.0301]
[1737688733758,0.02914246,248.2,248.17,4.0299]
[1737688733963,17.71813677,248.31,248.15,0.03035847]
[1737688734167,14.98703677,248.35,248.15,0.03035847]
[1737688734465,14.98703677,248.35,248.16,14.98703677]
[1737688734466,4.0274,248.33,248.16,14.98703677]
[1737688734665,14.98703677,248.35,248.16,14.98703677]
[1737688735266,0.0279775,248.28,248.23,0.02885175]
[1737688736662,4.0287,248.25,248.23,0.02885175]
[1737688737060,0.0279775,248.28,248.23,0.02885175]
[1737688737458,4.0562775,248.28,248.23,0.02885175]
[1737688737659,0.0279775,248.28,248.23,0.02885175]
[1737688738059,4.0285,248.26,248.23,0.02885175]
[1737688738263,0.0279775,248.28,248.23,0.02885175]
[1737688738567,9.34638559,248.26,248.23,0.02885175]
[1737688739261,4.0287,248.25,248.23,0.02885175]
[1737688739666,4.0284,248.27,248.23,0.02885175]
[1737688740269,0.0279775,248.28,248.23,0.02885175]
[1737688740567,4.0285,248.26,248.23,0.02885175]
[1737688741570,0.0279775,248.28,248.27,4.0283]
[1737688741764,9.34638559,248.38,248.24,6.62]
[1737688742166,9.34638559,248.38,248.31,4.0276]
[1737688742167,4.027,248.36,248.31,4.0276]
[1737688742473,9.34638559,248.38,248.24,6.62]
[1737688742669,9.34638559,248.42,248.24,6.62]
[1737688742863,9.34638559,248.42,248.26,9.34638559]
[1737688743068,15.9736,248.49,248.29,0.02878215]
[1737688743069,9.34638559,248.46,248.29,0.02878215]
[1737688743268,4.0265,248.38,248.3,4.0277]
[1737688743764,14.94221573,248.44,248.24,6.62]
[1737688744363,0.02574214,248.36,248.32,0.02726883]
[1737688744861,4.0271,248.35,248.32,0.02726883]
[1737688745367,0.02574214,248.36,248.32,0.02726883]
[1737688745670,0.02574214,248.36,248.34,4.027]
[1737688745862,4.0257,248.43,248.32,0.02726883]
[1737688746166,14.94221573,248.52,248.33,14.94221573]
[1737688746366,18.09311573,248.56,248.34,2.7335]
[1737688746571,14.94221573,248.56,248.34,2.7335]
[1737688747070,4.0245,248.51,248.35,3.296]
[1737688747266,0.02649776,248.47,248.43,0.02634329]
[1737688747770,2.759,248.59,248.43,0.02634329]
[1737688747968,4.0234,248.58,248.43,0.02634329]
[1737688748171,4.0234,248.58,248.41,14.94221573]
[1737688748470,14.94221573,248.64,248.51,4.0243]
[1737688748471,4.023,248.6,248.51,4.0243]
[1737688748667,14.94221573,248.64,248.51,4.0243]
[1737688748967,0.03048699,248.58,248.53,0.02618171]
[1737688749269,4.023,248.6,248.51,4.0243]
[1737688749474,4.023,248.6,248.46,2.3446]
[1737688749662,0.0268743,248.58,248.53,0.02586895]
[1737688749863,4.0238,248.55,248.53,0.02586895]
[1737688750564,4.0238,248.55,248.53,6.895e-05]
[1737688757477,4.0235,248.57,248.53,6.895e-05]
[1737688757678,0.0268743,248.58,248.54,4.0239]
[1737688757979,0.0268743,248.58,248.53,6.895e-05]
[1737688758580,17.15591573,248.68,248.53,6.895e-05]
[1737688758880,2.2137,248.68,248.5,2.4101]
[1737688759077,4.0221,248.66,248.5,2.4101]
[1737688759275,2.2137,248.68,248.5,2.4101]
[1737688759874,0.02622809,248.61,248.6,4.023]
[1737688760282,17.15591573,248.68,248.57,0.02899941]
[1737688760475,0.02645574,248.63,248.57,0.02899941]
[1737688760873,4.0232,248.59,248.57,0.02899941]
[1737688762283,4.0232,248.59,248.57,9.941e-05]
[1737688763785,0.02645574,248.63,248.57,9.941e-05]
[1737688765279,2.1963,248.74,248.57,9.941e-05]
[1737688765480,2.1963,248.74,248.55,2.2314]
[1737688765780,9.31535902,248.73,248.56,11.49545902]
[1737688766179,4.0219,248.67,248.61,4.0228]
[1737688766384,4.04769043,248.67,248.62,0.02900578]
[1737688767285,0.02579043,248.67,248.62,0.02900578]
[1737688768286,0.02579043,248.67,248.65,4.0222]
[1737688768485,0.02579043,248.67,248.62,0.02900578]
[1737688768685,9.31535902,248.86,248.73,4.0209]
[1737688768887,9.31535902,248.86,248.68,9.31535902]
[1737688769182,4.0197,248.81,248.73,4.0208]
[1737688769388,4.0197,248.81,248.69,4.5574]
[1737688769580,9.31535902,248.86,248.69,4.5574]
[1737688769782,4.0205,248.76,248.73,0.02549515]
[1737688770280,0.02769258,248.77,248.73,0.02549515]
[1737688770484,4.0207,248.75,248.73,0.02549515]
[1737688770782,0.02769258,248.77,248.6,9.31535902]
[1737688770984,4.0218,248.68,248.6,9.31535902]
[1737688771487,4.022,248.67,248.6,13.33835902]
[1737688771883,9.31535902,248.74,248.6,9.31535902]
[1737688772078,0.02953557,248.66,248.64,9.31535902]
[1737688772285,2.1814,248.81,248.64,9.31535902]
[1737688772588,2.1814,248.81,248.69,4.0216]
[1737688772589,4.0205,248.77,248.69,4.0216]
[1737688773087,4.0205,248.77,248.64,9.31535902]
[1737688773388,0.02801853,248.73,248.71,4.0213]
[1737688774685,0.02801853,248.73,248.69,3.2315]
[1737688777180,0.02801853,248.73,248.7,4.0214]
[1737688777785,0.02801853,248.73,248.69,3.2315]
[1737688777987,0.02801853,248.73,248.71,4.0212]
[1737688778187,4.0199,248.8,248.69,5.3194]
[1737688778485,4.0199,248.8,248.73,4.0209]
[1737688778690,4.0199,248.8,248.69,5.3194]
[1737688778987,2.3085,248.85,248.69,3.2315]
[1737688779190,9.31535902,248.82,248.65,2.1335]
[1737688779390,0.0254576,248.79,248.75,0.02938136]
[1737688779789,4.0205,248.76,248.75,0.02938136]
[1737688780188,4.0205,248.76,248.75,8.136e-05]
[1737688783892,0.0254576,248.79,248.75,8.136e-05]
[1737688784201,4.0186,248.88,248.8,4.0197]
[1737688784497,9.31535902,248.94,248.77,9.31535902]
[1737688784894,9.31535902,248.94,248.76,5.0653]
[1737688785295,0.02871097,248.87,248.83,0.02750839]
[1737688787203,4.0191,248.85,248.83,0.02750839]
[1737688793202,0.02871097,248.87,248.83,0.02750839]
[1737688793403,0.02871097,248.87,248.85,4.019]
[1737688795405,0.02871097,248.87,248.83,4.04670839]
[1737688795606,0.02871097,248.87,248.83,0.02750839]
[1737688796609,0.02871097,248.87,248.86,4.0189]
[1737688798207,4.0184,248.89,248.84,4.019]
[1737688798413,9.31535902,249.0,248.81,9.31535902]
[1737688799214,9.31535902,249.0,248.86,4.0188]
[1737688799618,0.0222911,248.93,248.88,0.02552514]
[1737688799815,4.0181,248.91,248.88,0.02552514]
[1737688801014,4.0182,248.9,248.88,0.02552514]
[1737688801620,4.0184,248.89,248.88,0.02552514]
[1737688802318,4.0182,248.91,248.88,0.02552514]
[1737688802515,0.0222911,248.93,248.88,0.02552514]
[1737688802720,0.0222911,248.93,248.92,4.0179]
[1737688803522,0.0222911,248.93,248.89,9.31535902]
[1737688804121,0.0222911,248.93,248.88,0.02552514]
[1737688804419,4.0179,248.92,248.88,0.02552514]
[1737688804913,0.0222911,248.93,248.88,0.02552514]
[1737688805815,0.0222911,248.93,248.89,9.31535902]
[1737688806221,4.9515176,249.02,248.89,9.31535902]
[1737688806419,4.9515176,249.02,248.94,9.31535902]
[1737688806919,9.31535902,249.08,248.94,9.31535902]
[1737688807322,9.31535902,249.08,248.99,0.02997291]
[1737688807922,4.2731,249.11,248.99,0.02997291]
[1737688808824,9.31535902,249.08,248.99,0.02997291]
[1737688809024,9.31535902,249.08,248.99,7.291e-05]
[1737688809224,4.0166,249.0,248.99,7.291e-05]
[1737688809622,9.31535902,249.0,248.84,9.31535902]
[1737688809822,4.0188,248.87,248.8,13.33505902]
[1737688810027,4.4433,248.99,248.8,13.33505902]
[1737688810226,4.0191,248.85,248.8,9.31535902]
[1737688810527,9.31535902,248.96,248.79,2.1214]
[1737688810727,4.0198,248.81,248.77,2.2342]
[1737688811228,4.04977291,248.81,248.77,0.02540821]
[1737688811428,4.0201,248.79,248.77,8.21e-06]
[1737688811624,9.31535902,248.78,248.77,8.21e-06]
[1737688812026,9.31535902,248.78,248.65,10.38317845]
[1737688812325,9.31535902,248.74,248.64,109.96187014]
[1737688812525,4.0214,248.71,248.58,4.0233]
[1737688812729,9.31535902,248.74,248.58,4.0233]
[1737688813219,0.03007778,248.68,248.64,0.02758937]
[1737688814329,4.05197778,248.68,248.64,0.02758937]
[1737688814825,0.03007778,248.68,248.64,0.02758937]
[1737688819227,0.03007778,248.68,248.64,4.04988937]
[1737688819434,0.03007778,248.68,248.64,0.02758937]
[1737688821229,0.03007778,248.68,248.66,4.0221]
[1737688821833,17.11356946,248.83,248.71,4.0212]
[1737688822834,4.0204,248.77,248.71,4.0212]
[1737688823037,4.0204,248.77,248.61,14.90446946]
[1737688823038,4.0204,248.77,248.75,0.03029463]
[1737688823235,14.90446946,248.79,248.58,2.224]
[1737688823433,4.0215,248.7,248.58,2.224]
[1737688823635,14.90446946,248.79,248.62,4.0227]
[1737688824037,4.0208,248.74,248.62,4.0227]
[1737688824228,14.90446946,248.75,248.58,2.224]
[1737688824428,0.02828939,248.7,248.66,0.03029005]
[1737688824628,0.02828939,248.7,248.66,9.005e-05]
[1737688824833,18.92636946,248.67,248.66,9.005e-05]
[1737688826737,14.90446946,248.67,248.5,2.094]
[1737688826932,14.90446946,248.59,248.46,3.1498]
[1737688827335,4.0239,248.56,248.46,3.1498]
[1737688827538,14.90446946,248.59,248.46,3.1498]
[1737688827835,14.90446946,248.51,248.5,0.03064354]
[1737688828139,14.90446946,248.51,248.32,109.96187014]
[1737688828738,4.0256,248.45,248.37,4.0267]
[1737688828937,14.90446946,248.51,248.32,109.96187014]
[1737688829240,0.02568523,248.43,248.39,0.02922844]
[1737688831944,0.02568523,248.43,248.41,4.026]
[1737688832438,0.02568523,248.43,248.39,0.02922844]
[1737688833442,0.02568523,248.43,248.31,2.1252]
[1737688834845,0.02568523,248.43,248.35,0.02807329]
[1737688835442,4.0264,248.4,248.35,0.02807329]
[1737688835638,0.02568523,248.43,248.35,0.02807329]
[1737688837144,4.0261,248.42,248.35,4.05517329]
[1737688838846,4.0266,248.38,248.35,0.02807329]
[1737688839241,4.0261,248.42,248.36,4.0269]
[1737688840245,0.02568523,248.43,248.39,4.0264]
[1737688841147,0.02568523,248.43,248.35,0.02807329]
[1737688841547,4.0261,248.42,248.36,4.0269]
[1737688841745,0.02568523,248.43,248.35,0.02807329]
[1737688842245,4.0261,248.41,248.36,4.0268]
[1737688842446,0.02568523,248.43,248.35,0.02807329]
[1737688844243,4.05148523,248.43,248.38,4.0265]
[1737688845651,4.0269,248.37,248.35,0.02807329]
[1737688845847,14.90446946,248.42,248.35,0.02807329]
[1737688846551,0.02568523,248.43,248.35,4.05517329]
[1737688846748,0.02568523,248.43,248.35,0.02807329]
[1737688847353,4.0263,248.4,248.36,4.0269]
[1737688847554,4.0263,248.4,248.35,0.02807329]
[1737688848549,4.0263,248.4,248.35,4.05517329]
[1737688849749,0.02568523,248.43,248.35,0.02807329]
[1737688850351,0.02568523,248.43,248.42,4.026]
[1737688850652,0.02568523,248.43,248.36,2.2445]
[1737688850847,0.02568523,248.43,248.42,4.026]
[1737688851150,2.0632,248.61,248.4,0.02553867]
[1737688851151,14.90446946,248.6,248.4,14.93000813]
[1737688851353,4.0234,248.58,248.51,4.0244]
[1737688851847,4.0241,248.54,248.47,4.0252]
[1737688852051,2.0632,248.61,248.41,2.0611]
[1737688852354,0.03054014,248.53,248.48,0.02662601]
[1737688852552,4.05484014,248.53,248.48,0.02662601]
[1737688852748,0.03054014,248.53,248.48,0.02662601]
[1737688852944,0.03054014,248.53,248.51,4.0245]
[1737688853255,0.03054014,248.53,248.48,0.02662601]
[1737688853845,0.03054014,248.53,248.51,4.0244]
[1737688854051,14.90446946,248.64,248.49,2.2527]
[1737688854554,4.0231,248.6,248.52,4.0242]
[1737688854754,14.90446946,248.64,248.49,2.2527]
[1737688855146,0.02949296,248.59,248.54,0.02957329]
[1737688856151,4.0236,248.57,248.54,0.02957329]
[1737688856756,4.0237,248.56,248.54,0.02957329]
[1737688857959,4.0252,248.47,248.41,2.0611]
[1737688858457,14.90446946,248.56,248.41,6.0872]
[1737688858651,14.90446946,248.56,248.41,2.0611]
[1737688859357,0.02886444,248.51,248.46,0.02703404]
[1737688859762,14.90446946,248.69,248.46,14.9315035]
[1737688860059,14.90446946,248.69,248.47,2.1289]
[1737688860858,0.02856381,248.6,248.56,0.02868179]
[1737688861159,14.90446946,248.69,248.56,0.02868179]
[1737688861350,4.0232,248.59,248.56,0.02868179]
[1737688861960,0.0284603,248.6,248.56,0.02868179]
[1737688862163,4.0234,248.58,248.56,0.02868179]
[1737688863362,14.90446946,248.58,248.41,195.0611]
[1737688863563,14.90446946,248.58,248.41,2.0611]
[1737688864362,14.90446946,248.48,248.24,3.62]
[1737688864567,26.98446946,248.48,248.28,2.1809]
[1737688864762,2.2548,248.47,248.28,2.1809]
[1737688864958,4.0271,248.36,248.28,2.1809]
[1737688865262,14.90446946,248.43,248.28,2.1809]
[1737688865767,4.0273,248.34,248.28,2.1809]
[1737688866066,18.93176946,248.34,248.32,102.99827014]
[1737688866261,18.93176946,248.34,248.32,90.77257014]
[1737688866564,4.0276,248.32,248.31,0.02856425]
[1737688866964,14.93203711,248.34,248.18,2.9733]
[1737688867167,4.0285,248.27,248.18,2.9733]
[1737688867369,14.90446946,248.3,248.18,2.9733]
[1737688867763,4.0277,248.32,248.18,2.9733]
[1737688867966,14.90446946,248.34,248.18,2.9733]
[1737688868159,0.02759074,248.27,248.23,0.02573579]
[1737688868859,0.02759074,248.27,248.23,4.05473579]
[1737688869560,0.02759074,248.27,248.23,0.02573579]
[1737688871266,4.05599074,248.27,248.23,0.02573579]
[1737688871761,0.02759074,248.27,248.23,0.02573579]
[1737688871969,14.90446946,248.26,248.23,0.02573579]
[1737688872273,14.90446946,248.38,248.23,0.02573579]
[1737688872459,14.90446946,248.43,248.24,14.90446946]
[1737688872767,4.3884,248.47,248.24,14.05337445]
[1737688873162,4.0255,248.45,248.37,4.0266]
[1737688873368,4.3884,248.47,248.24,14.05337445]
[1737688873568,0.02608025,248.43,248.39,0.02630579]
[1737688873770,4.0254,248.46,248.25,24.27310471]
[1737688873966,0.02616652,248.43,248.39,0.0302893]
[1737688874269,4.3884,248.47,248.25,24.27310471]
[1737688874466,4.05648649,248.43,248.39,0.02621935]
[1737688874665,0.03058649,248.43,248.25,24.27310471]
[1737688874866,0.03058649,248.43,248.39,0.03037868]
[1737688875065,0.03089531,248.36,248.25,217.27310471]
[1737688875266,2.2548,248.47,248.25,217.27310471]
[1737688875473,0.02606233,248.33,248.28,0.02955208]
[1737688875769,4.0254,248.46,248.28,0.02835918]
[1737688875967,2.2548,248.47,248.25,217.27310471]
[1737688876172,4.96105147,248.5,248.3,24.27310471]
[1737688876770,4.96105147,248.5,248.38,0.02892306]
[1737688876771,0.02642132,248.42,248.38,0.02892306]
[1737688877374,0.02642132,248.42,248.4,4.0263]
[1737688878171,0.02642132,248.42,248.38,0.02892306]
[1737688883577,0.02642132,248.42,248.4,4.0262]
[1737688883871,0.02642132,248.42,248.38,0.02892306]
[1737688884278,4.0264,248.4,248.38,0.02892306]
[1737688887875,4.0264,248.4,248.38,2.306e-05]
[1737688888279,24.27310471,248.39,248.38,2.306e-05]
[1737688888679,24.27310471,248.39,248.22,3.0072]
[1737688888879,4.0283,248.28,248.22,3.0072]
[1737688889572,4.0283,248.28,248.22,7.0364]
[1737688890075,0.02696273,248.27,248.23,0.02544378]
[1737688890270,24.27310471,248.34,248.19,4.0296]
[1737688890473,0.03082377,248.27,248.23,0.03083377]
[1737688890872,24.27310471,248.39,248.23,0.03083377]
[1737688891081,24.27310471,248.39,248.16,24.27310471]
[1737688891481,4.0271,248.36,248.16,24.27310471]
[1737688892181,0.03012559,248.28,248.24,0.02861865]
[1737688892382,4.0271,248.35,248.16,24.27310471]
[1737688892675,0.02667284,248.28,248.24,0.02817582]
[1737688892877,0.02667284,248.28,248.27,4.0284]
[1737688893081,24.27310471,248.39,248.25,4.1565]
[1737688893274,24.27310471,248.39,248.28,4.0282]
[1737688893675,4.0272,248.35,248.25,4.1565]
[1737688894084,0.02939962,248.32,248.28,0.03078843]
[1737688895084,0.02939962,248.32,248.28,4.05898843]
[1737688895387,0.02939962,248.32,248.25,2.9316947]
[1737688895580,0.02939962,248.32,248.16,217.27310471]
[1737688895781,27.02750148,248.4,248.17,17.07700148]
[1737688896189,27.02750148,248.4,248.21,4.0293]
[1737688896489,0.02550792,248.33,248.28,0.02603908]
[1737688896689,4.0281,248.29,248.28,0.02603908]
[1737688900690,0.02550792,248.33,248.18,2.9861]
[1737688900895,14.94750148,248.31,248.18,2.9861]
[1737688901185,2.0405,248.3,248.18,2.9861]
[1737688901391,4.0288,248.25,248.18,2.9861]
[1737688901591,2.0405,248.3,248.18,2.9861]
[1737688901789,4.0285,248.27,248.18,2.9861]
[1737688902092,0.02718878,248.26,248.22,0.02991995]
[1737688902392,4.0291,248.23,248.22,1.995e-05]
[1737688903589,4.0307,248.13,248.11,5.3204]
[1737688903795,14.94750148,248.23,248.11,5.3204]
[1737688903996,4.0296,248.2,248.11,5.3204]
[1737688904197,14.94750148,248.23,248.11,5.3204]
[1737688904789,4.0299,248.18,248.15,0.0259392]
[1737688905398,0.02970238,248.19,248.15,0.0259392]
[1737688905900,4.0301,248.17,248.15,0.0259392]
[1737688906098,0.02970238,248.19,248.15,0.0259392]
[1737688906701,4.0302,248.16,248.15,0.0259392]
[1737688909204,4.0302,248.16,248.15,3.92e-05]
[1737688909499,2.0506,248.18,248.05,2.9316]
[1737688909706,14.94750148,248.13,248.05,2.9316]
[1737688909904,4.0315,248.08,248.05,2.9316]
[1737688910806,0.02687273,248.09,248.05,6.9635]
[1737688911100,0.02687273,248.09,248.05,2.9316]
[1737688912207,14.94750148,248.22,248.05,2.9316]
[1737688912709,4.0301,248.17,248.11,4.0309]
[1737688913008,14.94750148,248.22,248.05,2.9316]
[1737688913403,14.94750148,248.22,248.11,0.03093822]
[1737688913404,0.02972188,248.16,248.11,0.03093822]
[1737688914502,4.0307,248.13,248.11,0.03093822]
[1737688915606,4.0305,248.15,248.11,0.03093822]
[1737688916609,4.0305,248.15,248.05,2.9316]
[1737688916805,0.02972188,248.16,248.05,2.9316]
[1737688917511,4.0307,248.13,248.08,4.0315]
[1737688917805,0.02972188,248.16,248.08,0.02703503]
[1737688918011,4.031,248.11,248.08,0.02703503]
[1737688918809,4.0308,248.13,248.08,0.02703503]
[1737688919913,4.0304,248.15,248.1,4.0311]
[1737688920204,0.02972188,248.16,248.08,0.02703503]
[1737688921210,14.94750148,248.28,248.08,0.02703503]
[1737688921510,4.0291,248.24,248.11,4.0309]
[1737688921704,14.94750148,248.28,248.12,2.2435]
[1737688921904,14.94750148,248.28,248.13,2.0993]
[1737688922208,4.0298,248.19,248.13,6.1299]
[1737688922406,0.02673793,248.23,248.18,0.02736928]
[1737688922812,4.0293,248.22,248.18,0.02736928]
[1737688923012,0.02673793,248.23,248.18,0.02736928]
[1737688924213,4.0296,248.2,248.18,0.02736928]
[1737688925005,0.02673793,248.23,248.18,0.02736928]
[1737688926005,0.02673793,248.23,248.18,4.05716928]
[1737688926517,0.02673793,248.23,248.18,0.02736928]
[1737688928716,0.02673793,248.23,248.18,4.05716928]
[1737688929716,4.05583793,248.23,248.18,4.05716928]
[1737688930513,0.02673793,248.23,248.18,4.05716928]
[1737688930720,0.02673793,248.23,248.21,4.0293]
[1737688931617,0.02673793,248.23,248.22,4.0292]
[1737688932820,0.02673793,248.23,248.21,4.0294]
[1737688933014,4.0292,248.22,248.19,3.0598]
[1737688933318,0.02673793,248.23,248.19,3.0598]
[1737688934420,4.0292,248.22,248.19,3.0598]
[1737688934622,0.02673793,248.23,248.19,3.0598]
[1737688935819,4.05593793,248.23,248.19,3.0598]
[1737688936027,0.02673793,248.23,248.19,3.0598]
[1737688936717,0.02673793,248.23,248.11,10.79964583]
[1737688937319,0.02673793,248.23,248.22,4.0292]
[1737688938922,0.02673793,248.23,248.2,0.02539332]
[1737688939419,0.02673793,248.23,248.06,2.0419]
[1737688939619,4.0302,248.17,248.11,4.0309]
[1737688940621,0.0259094,248.16,248.12,0.02634706]
[1737688942125,4.0561094,248.16,248.12,0.02634706]
[1737688942926,0.0259094,248.16,248.12,0.02634706]
[1737688943224,4.0306,248.14,248.12,0.02634706]
[1737688944828,4.0306,248.14,248.12,4.706e-05]
[1737688947824,9.34819479,248.15,248.12,4.706e-05]
[1737688948029,0.0259094,248.16,248.12,4.706e-05]
[1737688949130,4.0307,248.13,248.12,4.706e-05]
[1737688949325,0.0259094,248.16,248.12,4.706e-05]
[1737688951531,4.0291,248.23,248.12,4.706e-05]
[1737688951724,12.24909479,248.27,248.11,5.131]
[1737688952723,0.02908007,248.21,248.17,0.03076705]
[1737688953331,9.34819479,248.31,248.24,4.0288]
[1737688953332,13.37609479,248.31,248.24,4.0288]
[1737688953724,4.0279,248.31,248.24,4.0288]
[1737688953926,4.028,248.3,248.22,4.0291]
[1737688954434,4.0288,248.25,248.18,4.0298]
[1737688954632,0.02615118,248.28,248.24,0.02846548]
[1737688954832,14.9506201,248.32,248.12,2.2006]
[1737688955133,4.0286,248.26,248.24,0.02847782]
[1737688957135,0.02879012,248.28,248.06,193.0]
[1737688957435,14.9506201,248.32,248.06,193.0]
[1737688957837,4.0291,248.23,248.17,4.03]
[1737688958337,0.02583999,248.22,248.18,0.03033185]
[1737688961139,4.0294,248.21,248.18,0.03033185]
[1737688963638,0.02583999,248.22,248.19,4.0297]
[1737688964041,0.02583999,248.22,248.18,0.03033185]
[1737688964544,0.02583999,248.22,248.21,4.0294]
[1737688966143,0.02583999,248.22,248.18,4.06003185]
[1737688966344,0.02583999,248.22,248.18,0.03033185]
[1737688967445,4.0297,248.19,248.18,0.03033185]
[1737688969645,14.9506201,248.19,248.07,5.0181]
[1737688970747,4.0307,248.13,248.11,0.02739797]
[1737688971848,0.02709941,248.15,247.98,18.93074143]
[1737688972048,4.0311,248.11,248.05,4.0318]
[1737688972249,14.9506201,248.19,247.99,5.232]
[1737688973145,0.02873746,248.11,248.08,4.0313]
[1737688973447,14.9506201,248.19,248.08,4.0313]
[1737688973652,0.02768222,248.12,248.08,4.0313]
[1737688973954,9.35674349,248.16,248.08,4.0313]
[1737688974154,0.03000718,248.12,248.08,4.05841945]
[1737688976557,0.03000718,248.12,248.1,4.0311]
[1737688976751,0.03000718,248.12,248.08,0.02711945]
[1737688977057,14.43684349,248.21,248.08,9.38386294]
[1737688977256,9.35674349,248.21,248.09,2.1881]
[1737688977753,4.0296,248.2,248.15,4.0302]
[1737688978258,4.05831814,248.2,248.16,4.0302]
[1737688978557,0.02871814,248.2,248.16,4.0302]
[1737688983053,0.02871814,248.2,248.15,0.02800534]
[1737688983758,4.05831814,248.2,248.15,0.02800534]
[1737688984558,4.05831814,248.2,248.15,4.05840534]
[1737688985764,0.02871814,248.2,248.18,4.0298]
[1737688986269,0.02871814,248.2,248.15,0.02800534]
[1737688986462,0.02871814,248.2,248.17,4.03]
[1737688986962,0.02871814,248.2,248.15,0.02800534]
[1737688987266,4.0297,248.19,248.15,4.05840534]
[1737688988462,4.0302,248.16,248.15,0.02800534]
[1737688988661,4.0302,248.16,248.15,5.34e-06]
[1737688992559,4.0312,248.1,248.09,5.34e-06]
[1737688992764,9.35674349,248.13,248.02,2.1456]
[1737688992968,9.35674349,248.13,247.96,9.35674349]
[1737688993168,9.35674349,248.13,248.0,2.2211]
[1737688993365,4.0314,248.09,248.04,4.0321]
[1737688993566,9.35674349,248.13,248.04,4.0321]
[1737688993771,0.02559167,248.09,248.04,0.02686808]
[1737688994670,0.02559167,248.09,248.08,4.0315]
[1737688997266,9.167e-05,248.09,248.08,4.0315]
[1737689004779,9.167e-05,248.09,248.04,0.02686808]
[1737689005181,9.167e-05,248.09,248.04,9.38361157]
[1737689006072,9.167e-05,248.09,248.08,4.0315]
[1737689009484,9.167e-05,248.09,248.07,4.0316]
[1737689014590,9.167e-05,248.09,248.05,4.0319]
[1737689015590,9.167e-05,248.09,248.07,4.0315]
[1737689015789,9.167e-05,248.09,248.04,0.02686808]
[1737689015790,9.167e-05,248.09,248.06,5.9877463]
[1737689016189,9.167e-05,248.09,248.07,4.0317]
[1737689016790,9.167e-05,248.09,248.08,4.0315]
[1737689025496,4.0295,248.21,248.15,4.0303]
[1737689025801,10.0168463,248.23,248.11,5.9877463]
[1737689026102,5.9877463,248.23,248.17,4.0299]
[1737689026701,0.03095877,248.22,248.18,0.02731143]
[1737689026902,4.06015877,248.22,248.18,0.02731143]
[1737689029093,4.06025877,248.22,248.18,0.02731143]
[1737689029800,4.0294,248.21,248.18,0.02731143]
[1737689031404,4.0296,248.2,248.18,0.02731143]